[Event "Late-Titled-Tuesday-Blitz-February-27-2024"]
[Site "Chess.com"]
[Date "2024.02.27"]
[Round "3"]
[White "tteshan"]
[Black "TheAlienParty"]
[Result "1-0"]
[WhiteElo "2595"]
[BlackElo "2394"]
[TimeControl "180+1"]
[EndTime "14:31:11 PST"]
[Termination "tteshan won by checkmate"]

1. e4 {[%clk 0:03:00.9]} 1... e5 {[%clk 0:02:59.3]} 2. Nf3 {[%clk 0:02:59.2]}
2... Nc6 {[%clk 0:02:59.1]} 3. Bb5 {[%clk 0:02:58]} 3... a6 {[%clk 0:02:59.1]}
4. Ba4 {[%clk 0:02:56]} 4... d6 {[%clk 0:02:59]} 5. O-O {[%clk 0:02:53.7]} 5...
Bd7 {[%clk 0:02:58.9]} 6. c4 {[%clk 0:02:51.5]} 6... Nd4 {[%clk 0:02:54.2]} 7.
Bxd7+ {[%clk 0:02:50.5]} 7... Qxd7 {[%clk 0:02:53.7]} 8. Nxd4 {[%clk 0:02:50.7]}
8... exd4 {[%clk 0:02:53.7]} 9. d3 {[%clk 0:02:51.1]} 9... g6 {[%clk 0:02:50.3]}
10. f4 {[%clk 0:02:50.4]} 10... Bg7 {[%clk 0:02:50.1]} 11. Nd2 {[%clk
0:02:50.8]} 11... Ne7 {[%clk 0:02:49.5]} 12. Nf3 {[%clk 0:02:50.6]} 12... h6
{[%clk 0:02:45.3]} 13. Rb1 {[%clk 0:02:42.2]} 13... O-O {[%clk 0:02:44]} 14. b4
{[%clk 0:02:41.8]} 14... f5 {[%clk 0:02:43.7]} 15. Bb2 {[%clk 0:02:20]} 15... c5
{[%clk 0:02:42.5]} 16. bxc5 {[%clk 0:02:19]} 16... dxc5 {[%clk 0:02:42.2]} 17.
e5 {[%clk 0:02:18.2]} 17... b5 {[%clk 0:02:35.7]} 18. Ba3 {[%clk 0:02:15.6]}
18... Rfc8 {[%clk 0:02:32.9]} 19. Qb3 {[%clk 0:02:07.8]} 19... b4 {[%clk
0:02:31.7]} 20. Bc1 {[%clk 0:02:07.5]} 20... a5 {[%clk 0:02:29.1]} 21. a4 {[%clk
0:02:07.1]} 21... Rc6 {[%clk 0:02:13.6]} 22. Qd1 {[%clk 0:02:03.7]} 22... Nc8
{[%clk 0:02:12.9]} 23. Ra1 {[%clk 0:02:00.4]} 23... Nb6 {[%clk 0:02:11.4]} 24.
Kh1 {[%clk 0:01:56]} 24... Re6 {[%clk 0:02:10.8]} 25. h3 {[%clk 0:01:54.8]}
25... Rae8 {[%clk 0:02:09.4]} 26. Nd2 {[%clk 0:01:47.8]} 26... g5 {[%clk
0:02:05.6]} 27. g3 {[%clk 0:01:46.9]} 27... gxf4 {[%clk 0:01:49]} 28. gxf4
{[%clk 0:01:47.8]} 28... Rg6 {[%clk 0:01:45.9]} 29. Qh5 {[%clk 0:01:29.1]} 29...
Rg3 {[%clk 0:01:42.8]} 30. Rf3 {[%clk 0:01:18.7]} 30... Qc6 {[%clk 0:01:27.6]}
31. Kh2 {[%clk 0:01:17.2]} 31... Rxf3 {[%clk 0:01:22.8]} 32. Qxf3 {[%clk
0:01:18.1]} 32... Qd7 {[%clk 0:01:14]} 33. Nb3 {[%clk 0:01:11.4]} 33... Nxa4
{[%clk 0:01:11.4]} 34. Qd5+ {[%clk 0:01:02.5]} 34... Qxd5 {[%clk 0:01:04.6]} 35.
cxd5 {[%clk 0:01:03.4]} 35... Nc3 {[%clk 0:00:56.6]} 36. Rxa5 {[%clk 0:01:01.2]}
36... Nxd5 {[%clk 0:00:55.1]} 37. Rxc5 {[%clk 0:00:59.9]} 37... Ne3 {[%clk
0:00:46.1]} 38. Nxd4 {[%clk 0:00:55.7]} 38... Nd1 {[%clk 0:00:41]} 39. Nxf5
{[%clk 0:00:53]} 39... Rb8 {[%clk 0:00:40.8]} 40. Rc7 {[%clk 0:00:48.2]} 40...
Bf8 {[%clk 0:00:40.1]} 41. e6 {[%clk 0:00:44.4]} 41... b3 {[%clk 0:00:40]} 42.
e7 {[%clk 0:00:43.6]} 42... b2 {[%clk 0:00:38.9]} 43. Bxb2 {[%clk 0:00:36.9]}
43... Rxb2+ {[%clk 0:00:37.8]} 44. Kg3 {[%clk 0:00:37.5]} 44... Bxe7 {[%clk
0:00:34.8]} 45. Rxe7 {[%clk 0:00:33.3]} 45... Rd2 {[%clk 0:00:28.4]} 46. Nxh6+
{[%clk 0:00:31]} 46... Kf8 {[%clk 0:00:28.4]} 47. Rd7 {[%clk 0:00:28.9]} 47...
Ke8 {[%clk 0:00:27.6]} 48. Rd5 {[%clk 0:00:24.8]} 48... Nc3 {[%clk 0:00:26.2]}
49. Re5+ {[%clk 0:00:22.5]} 49... Kf8 {[%clk 0:00:25.8]} 50. Re3 {[%clk
0:00:20.9]} 50... Kg7 {[%clk 0:00:20.5]} 51. Nf5+ {[%clk 0:00:20.3]} 51... Kg6
{[%clk 0:00:20]} 52. Ne7+ {[%clk 0:00:20.1]} 52... Kh5 {[%clk 0:00:19.7]} 53. f5
{[%clk 0:00:16.8]} 53... Ne2+ {[%clk 0:00:18.6]} 54. Kf3 {[%clk 0:00:14.4]}
54... Ng1+ {[%clk 0:00:18.6]} 55. Ke4 {[%clk 0:00:13.3]} 55... Kh4 {[%clk
0:00:18.2]} 56. Ng6+ {[%clk 0:00:12.7]} 56... Kg5 {[%clk 0:00:17.9]} 57. Rg3+
{[%clk 0:00:12.5]} 57... Kf6 {[%clk 0:00:18.4]} 58. Rxg1 {[%clk 0:00:12]} 58...
Re2+ {[%clk 0:00:18.2]} 59. Kd4 {[%clk 0:00:12.1]} 59... Kxf5 {[%clk 0:00:16.9]}
60. h4 {[%clk 0:00:10.1]} 60... Rh2 {[%clk 0:00:15.7]} 61. Rg5+ {[%clk
0:00:09.9]} 61... Kf6 {[%clk 0:00:15.6]} 62. Rg3 {[%clk 0:00:08.2]} 62... Rh1
{[%clk 0:00:15.1]} 63. Nf4 {[%clk 0:00:04.7]} 63... Rxh4 {[%clk 0:00:14.7]} 64.
Ke3 {[%clk 0:00:04.8]} 64... Kf5 {[%clk 0:00:13.8]} 65. Ne2 {[%clk 0:00:05.4]}
65... Ra4 {[%clk 0:00:12.2]} 66. Rf3+ {[%clk 0:00:05.9]} 66... Kg5 {[%clk
0:00:12.1]} 67. d4 {[%clk 0:00:05.2]} 67... Ra3+ {[%clk 0:00:12.1]} 68. Ke4
{[%clk 0:00:05.7]} 68... Ra2 {[%clk 0:00:12.2]} 69. Nc3 {[%clk 0:00:05.1]} 69...
Ra1 {[%clk 0:00:12]} 70. d5 {[%clk 0:00:04.9]} 70... Re1+ {[%clk 0:00:12]} 71.
Kd4 {[%clk 0:00:05.2]} 71... Rd1+ {[%clk 0:00:12.1]} 72. Ke5 {[%clk 0:00:05.3]}
72... Kg4 {[%clk 0:00:13]} 73. Rf4+ {[%clk 0:00:05]} 73... Kg3 {[%clk
0:00:12.9]} 74. Rf8 {[%clk 0:00:05]} 74... Re1+ {[%clk 0:00:12.8]} 75. Ne4+
{[%clk 0:00:05]} 75... Kg4 {[%clk 0:00:12.5]} 76. Rf4+ {[%clk 0:00:04.4]} 76...
Kh5 {[%clk 0:00:12.4]} 77. d6 {[%clk 0:00:04.5]} 77... Rd1 {[%clk 0:00:12.1]}
78. Ke6 {[%clk 0:00:04.1]} 78... Kh6 {[%clk 0:00:11.9]} 79. Rf5 {[%clk 0:00:04]}
79... Re1 {[%clk 0:00:11.3]} 80. Re5 {[%clk 0:00:04.3]} 80... Rd1 {[%clk
0:00:11.3]} 81. d7 {[%clk 0:00:04.3]} 81... Kh7 {[%clk 0:00:11]} 82. Rd5 {[%clk
0:00:04.7]} 82... Re1 {[%clk 0:00:11]} 83. Ke5 {[%clk 0:00:04]} 83... Rg1 {[%clk
0:00:10.1]} 84. d8=Q {[%clk 0:00:04]} 84... Rg5+ {[%clk 0:00:09.3]} 85. Nxg5+
{[%clk 0:00:04.1]} 85... Kg6 {[%clk 0:00:09.4]} 86. Qf6+ {[%clk 0:00:04.1]}
86... Kh5 {[%clk 0:00:09.5]} 87. Ne4 {[%clk 0:00:03.2]} 87... Kg4 {[%clk
0:00:09.4]} 88. Qg5+ {[%clk 0:00:03.7]} 88... Kf3 {[%clk 0:00:09.4]} 89. Qg3+
{[%clk 0:00:03.7]} 89... Ke2 {[%clk 0:00:09.5]} 90. Qf2# {[%clk 0:00:04.4]} 1-0

[Event "Late-Titled-Tuesday-Blitz-February-27-2024"]
[Site "Chess.com"]
[Date "2024.02.27"]
[Round "3"]
[White "Boorchess"]
[Black "Hui_Li_Macau"]
[Result "0-1"]
[WhiteElo "2522"]
[BlackElo "2369"]
[TimeControl "180+1"]
[EndTime "14:32:41 PST"]
[Termination "Hui_Li_Macau won on time"]

1. d4 {[%clk 0:02:26.9]} 1... d5 {[%clk 0:02:59.2]} 2. c4 {[%clk 0:02:26.8]}
2... e6 {[%clk 0:02:59.8]} 3. Nf3 {[%clk 0:02:26.6]} 3... Nf6 {[%clk 0:03:00.3]}
4. g3 {[%clk 0:02:27.1]} 4... Be7 {[%clk 0:02:59.9]} 5. Bg2 {[%clk 0:02:27.4]}
5... O-O {[%clk 0:03:00.6]} 6. O-O {[%clk 0:02:27.6]} 6... dxc4 {[%clk
0:03:01.1]} 7. Qc2 {[%clk 0:02:28.2]} 7... a6 {[%clk 0:03:01]} 8. a4 {[%clk
0:02:28.7]} 8... Bd7 {[%clk 0:03:01.2]} 9. Qxc4 {[%clk 0:02:29]} 9... Bc6 {[%clk
0:03:01.6]} 10. Bg5 {[%clk 0:02:29]} 10... Bd5 {[%clk 0:02:59.7]} 11. Qc1 {[%clk
0:02:28.3]} 11... h6 {[%clk 0:02:54.5]} 12. Bxf6 {[%clk 0:02:27.9]} 12... Bxf6
{[%clk 0:02:55.4]} 13. Nc3 {[%clk 0:02:26.9]} 13... Bxf3 {[%clk 0:02:51.9]} 14.
Bxf3 {[%clk 0:02:26.7]} 14... c6 {[%clk 0:02:52.3]} 15. Rd1 {[%clk 0:02:24.7]}
15... a5 {[%clk 0:02:52.3]} 16. Ne4 {[%clk 0:02:22]} 16... Na6 {[%clk
0:02:51.5]} 17. Qf4 {[%clk 0:02:07.4]} 17... Bg5 {[%clk 0:02:46.5]} 18. Nxg5
{[%clk 0:02:04.6]} 18... Qxg5 {[%clk 0:02:45.6]} 19. e3 {[%clk 0:01:57.4]} 19...
Rfd8 {[%clk 0:02:29.1]} 20. Rac1 {[%clk 0:01:55.3]} 20... Qxf4 {[%clk
0:02:11.3]} 21. gxf4 {[%clk 0:01:54.9]} 21... Nb4 {[%clk 0:02:11.6]} 22. h4
{[%clk 0:01:50.9]} 22... Kf8 {[%clk 0:02:07.8]} 23. Kf1 {[%clk 0:01:50.8]} 23...
g6 {[%clk 0:02:03.8]} 24. Ke2 {[%clk 0:01:48.2]} 24... h5 {[%clk 0:02:03.8]} 25.
Rg1 {[%clk 0:01:42.2]} 25... Ke7 {[%clk 0:01:58.1]} 26. Rc5 {[%clk 0:01:40.3]}
26... Nd5 {[%clk 0:01:33.4]} 27. Rgc1 {[%clk 0:01:33.2]} 27... Ra6 {[%clk
0:01:25.9]} 28. Kf1 {[%clk 0:01:10.4]} 28... Nb4 {[%clk 0:01:13.5]} 29. Be2
{[%clk 0:01:07.9]} 29... Raa8 {[%clk 0:01:10.7]} 30. Kg2 {[%clk 0:01:06]} 30...
Rd5 {[%clk 0:01:04.8]} 31. Kf3 {[%clk 0:01:02.7]} 31... Rxc5 {[%clk 0:01:04.1]}
32. Rxc5 {[%clk 0:01:02.5]} 32... Kd6 {[%clk 0:00:57.3]} 33. Rc1 {[%clk
0:01:02.2]} 33... Nd5 {[%clk 0:00:55.3]} 34. Bc4 {[%clk 0:00:58.1]} 34... Nb6
{[%clk 0:00:55]} 35. Bb3 {[%clk 0:00:57.4]} 35... Nd5 {[%clk 0:00:55.2]} 36.
Bxd5 {[%clk 0:00:53.9]} 36... exd5 {[%clk 0:00:53.6]} 37. f5 {[%clk 0:00:46.6]}
37... Rg8 {[%clk 0:00:45.9]} 38. Rg1 {[%clk 0:00:44.6]} 38... Ke7 {[%clk
0:00:43.7]} 39. Kf4 {[%clk 0:00:42.7]} 39... Kf6 {[%clk 0:00:44]} 40. fxg6
{[%clk 0:00:40.7]} 40... fxg6 {[%clk 0:00:41.6]} 41. f3 {[%clk 0:00:39.7]} 41...
Rb8 {[%clk 0:00:35]} 42. e4 {[%clk 0:00:38]} 42... dxe4 {[%clk 0:00:32.7]} 43.
fxe4 {[%clk 0:00:38.1]} 43... b5 {[%clk 0:00:33.3]} 44. Rg5 {[%clk 0:00:36]}
44... bxa4 {[%clk 0:00:32.1]} 45. Rxa5 {[%clk 0:00:35.9]} 45... Rxb2 {[%clk
0:00:29.8]} 46. Rxa4 {[%clk 0:00:35.9]} 46... Rh2 {[%clk 0:00:27.2]} 47. Kg3
{[%clk 0:00:30.3]} 47... Re2 {[%clk 0:00:26.3]} 48. Kf3 {[%clk 0:00:30]} 48...
Rh2 {[%clk 0:00:26.6]} 49. Ra6 {[%clk 0:00:28.7]} 49... Rh3+ {[%clk 0:00:21.2]}
50. Ke2 {[%clk 0:00:26.8]} 50... Rxh4 {[%clk 0:00:21.2]} 51. Rxc6+ {[%clk
0:00:26]} 51... Kf7 {[%clk 0:00:18.1]} 52. Kd3 {[%clk 0:00:25.4]} 52... Rh1
{[%clk 0:00:17.1]} 53. e5 {[%clk 0:00:24]} 53... g5 {[%clk 0:00:16.5]} 54. d5
{[%clk 0:00:22.8]} 54... Rd1+ {[%clk 0:00:14.6]} 55. Ke4 {[%clk 0:00:22.6]}
55... h4 {[%clk 0:00:12.1]} 56. Rc7+ {[%clk 0:00:21]} 56... Ke8 {[%clk
0:00:11.6]} 57. Rh7 {[%clk 0:00:19.5]} 57... Kf8 {[%clk 0:00:05.7]} 58. e6
{[%clk 0:00:18]} 58... Kg8 {[%clk 0:00:04.3]} 59. Rh5 {[%clk 0:00:18]} 59... Kf8
{[%clk 0:00:02]} 60. Rxg5 {[%clk 0:00:17.5]} 60... Ke7 {[%clk 0:00:02]} 61. Rh5
{[%clk 0:00:17]} 61... Re1+ {[%clk 0:00:01.5]} 62. Kd4 {[%clk 0:00:16.8]} 62...
Rd1+ {[%clk 0:00:01.6]} 63. Ke5 {[%clk 0:00:15.7]} 63... Re1+ {[%clk 0:00:02]}
64. Kf5 {[%clk 0:00:15.8]} 64... Rf1+ {[%clk 0:00:02.5]} 65. Kg6 {[%clk
0:00:15.7]} 65... Rg1+ {[%clk 0:00:02.7]} 66. Kh7 {[%clk 0:00:14.2]} 66... Rh1
{[%clk 0:00:02.5]} 67. Kg6 {[%clk 0:00:12.9]} 67... h3 {[%clk 0:00:01.4]} 68.
Rh7+ {[%clk 0:00:12.4]} 68... Kd6 {[%clk 0:00:01.4]} 69. Rd7+ {[%clk 0:00:12.5]}
69... Kc5 {[%clk 0:00:01.8]} 70. e7 {[%clk 0:00:12.7]} 70... Re1 {[%clk
0:00:02]} 71. Kf7 {[%clk 0:00:12.4]} 71... h2 {[%clk 0:00:02.2]} 72. e8=Q {[%clk
0:00:11.6]} 72... Rxe8 {[%clk 0:00:02.3]} 73. Kxe8 {[%clk 0:00:12.3]} 73... h1=Q
{[%clk 0:00:03.2]} 74. Kd8 {[%clk 0:00:12.5]} 74... Qh4+ {[%clk 0:00:03]} 75.
Kc7 {[%clk 0:00:12.6]} 75... Qa4 {[%clk 0:00:03]} 76. Rd8 {[%clk 0:00:12.3]}
76... Qa5+ {[%clk 0:00:02.9]} 77. Kc8 {[%clk 0:00:12.5]} 77... Qa8+ {[%clk
0:00:02.8]} 78. Kc7 {[%clk 0:00:12.6]} 78... Qa7+ {[%clk 0:00:03.4]} 79. Kc8
{[%clk 0:00:13]} 79... Kb6 {[%clk 0:00:03.6]} 80. Rd6+ {[%clk 0:00:13]} 80...
Kc5 {[%clk 0:00:03.6]} 81. Rd8 {[%clk 0:00:13.3]} 81... Qa6+ {[%clk 0:00:03.8]}
82. Kc7 {[%clk 0:00:13.5]} 82... Qa5+ {[%clk 0:00:04.1]} 83. Kc8 {[%clk
0:00:13.8]} 83... Qa8+ {[%clk 0:00:03.9]} 84. Kc7 {[%clk 0:00:14]} 84... Qa4
{[%clk 0:00:04.1]} 85. Kc8 {[%clk 0:00:14.4]} 85... Kb6 {[%clk 0:00:03.9]} 86.
Rd6+ {[%clk 0:00:14.5]} 86... Kc5 {[%clk 0:00:04.1]} 87. Rd8 {[%clk 0:00:14]}
87... Qg4+ {[%clk 0:00:03.7]} 88. Kc7 {[%clk 0:00:13.5]} 88... Qf4+ {[%clk
0:00:03.5]} 89. Kc8 {[%clk 0:00:13.3]} 89... Qf5+ {[%clk 0:00:04]} 90. Kc7
{[%clk 0:00:13.4]} 90... Qe5+ {[%clk 0:00:04.5]} 91. Kc8 {[%clk 0:00:11.8]}
91... Kb6 {[%clk 0:00:04.3]} 92. Rd7 {[%clk 0:00:12.2]} 92... Qc3+ {[%clk
0:00:03.5]} 93. Kd8 {[%clk 0:00:11.8]} 93... Qh8+ {[%clk 0:00:03.1]} 94. Ke7
{[%clk 0:00:12]} 94... Kc5 {[%clk 0:00:02.9]} 95. Ke6 {[%clk 0:00:11.9]} 95...
Qh3+ {[%clk 0:00:02.2]} 96. Ke7 {[%clk 0:00:12.1]} 96... Qe3+ {[%clk 0:00:02.6]}
97. Kd8 {[%clk 0:00:12.3]} 97... Qg5+ {[%clk 0:00:02.8]} 98. Kc8 {[%clk
0:00:12.4]} 98... Qf5 {[%clk 0:00:02.6]} 99. Kc7 {[%clk 0:00:12.3]} 99... Qe5+
{[%clk 0:00:02.5]} 100. Kd8 {[%clk 0:00:11.4]} 100... Qb8+ {[%clk 0:00:02.2]}
101. Ke7 {[%clk 0:00:11.5]} 101... Qc8 {[%clk 0:00:02.2]} 102. Ke6 {[%clk
0:00:11.6]} 102... Qe8+ {[%clk 0:00:01.5]} 103. Re7 {[%clk 0:00:11.1]} 103...
Qg8+ {[%clk 0:00:01.6]} 104. Rf7 {[%clk 0:00:11.2]} 104... Qc8+ {[%clk
0:00:01.5]} 105. Rd7 {[%clk 0:00:11.2]} 105... Qg8+ {[%clk 0:00:01.8]} 106. Rf7
{[%clk 0:00:11]} 106... Qg4+ {[%clk 0:00:02.1]} 107. Rf5 {[%clk 0:00:09.9]}
107... Qe4+ {[%clk 0:00:01.8]} 108. Re5 {[%clk 0:00:09.8]} 108... Qg6+ {[%clk
0:00:02]} 109. Kd7 {[%clk 0:00:09.9]} 109... Qf7+ {[%clk 0:00:02.2]} 110. Re7
{[%clk 0:00:09]} 110... Qxd5+ {[%clk 0:00:01.9]} 111. Ke8 {[%clk 0:00:09.9]}
111... Qg8+ {[%clk 0:00:01.6]} 112. Kd7 {[%clk 0:00:10.1]} 112... Qg4+ {[%clk
0:00:01.7]} 113. Ke8 {[%clk 0:00:09.3]} 113... Kd6 {[%clk 0:00:02.1]} 114. Ra7
{[%clk 0:00:06]} 114... Qc8+ {[%clk 0:00:02.2]} 115. Kf7 {[%clk 0:00:05.7]}
115... Qc4+ {[%clk 0:00:02.6]} 116. Kf8 {[%clk 0:00:05.3]} 116... Qf4+ {[%clk
0:00:02.6]} 117. Rf7 {[%clk 0:00:05.4]} 117... Qb4 {[%clk 0:00:02.2]} 118. Kg7
{[%clk 0:00:05.3]} 118... Ke6 {[%clk 0:00:02.4]} 119. Rf6+ {[%clk 0:00:05.6]}
119... Ke5 {[%clk 0:00:02.8]} 120. Rf7 {[%clk 0:00:06.1]} 120... Qb6 {[%clk
0:00:02.3]} 121. Kf8 {[%clk 0:00:05.2]} 121... Qd8+ {[%clk 0:00:02.3]} 122. Kg7
{[%clk 0:00:05.2]} 122... Ke6 {[%clk 0:00:02.8]} 0-1

[Event "Late-Titled-Tuesday-Blitz-February-27-2024"]
[Site "Chess.com"]
[Date "2024.02.27"]
[Round "4"]
[White "mightysmasher"]
[Black "1g60-1"]
[Result "1-0"]
[WhiteElo "2551"]
[BlackElo "2280"]
[TimeControl "180+1"]
[EndTime "14:35:17 PST"]
[Termination "mightysmasher won by resignation"]

1. e4 {[%clk 0:02:58.2]} 1... c5 {[%clk 0:02:59.7]} 2. c3 {[%clk 0:02:58.2]}
2... e6 {[%clk 0:02:58.3]} 3. d4 {[%clk 0:02:58.2]} 3... d5 {[%clk 0:02:58.9]}
4. exd5 {[%clk 0:02:59.1]} 4... Qxd5 {[%clk 0:02:58.2]} 5. Nf3 {[%clk
0:02:58.6]} 5... Nc6 {[%clk 0:02:58.4]} 6. Na3 {[%clk 0:02:57.8]} 6... cxd4
{[%clk 0:02:57.3]} 7. Nb5 {[%clk 0:02:57.4]} 7... Qe4+ {[%clk 0:02:32.5]} 8. Be2
{[%clk 0:02:54.9]} 8... Kd8 {[%clk 0:02:17.8]} 9. O-O {[%clk 0:02:48.3]} 9...
Bd7 {[%clk 0:02:15.1]} 10. Nbxd4 {[%clk 0:02:46.1]} 10... Nxd4 {[%clk
0:02:11.8]} 11. Nxd4 {[%clk 0:02:45.2]} 11... Nf6 {[%clk 0:02:10.7]} 12. Bf3
{[%clk 0:02:42.9]} 12... Qh4 {[%clk 0:02:06.7]} 13. g3 {[%clk 0:02:35.5]} 13...
Qh3 {[%clk 0:02:04.2]} 14. Bg5 {[%clk 0:02:31.9]} 14... Rb8 {[%clk 0:01:59.1]}
15. Bg2 {[%clk 0:02:27.6]} 1-0

[Event "Late-Titled-Tuesday-Blitz-February-27-2024"]
[Site "Chess.com"]
[Date "2024.02.27"]
[Round "4"]
[White "s-dshubin"]
[Black "AcostaPablo"]
[Result "0-1"]
[WhiteElo "2357"]
[BlackElo "2632"]
[TimeControl "180+1"]
[EndTime "14:36:12 PST"]
[Termination "AcostaPablo won by checkmate"]

1. e4 {[%clk 0:03:00.9]} 1... e6 {[%clk 0:02:57.5]} 2. d4 {[%clk 0:03:01]} 2...
d5 {[%clk 0:02:56.2]} 3. Nc3 {[%clk 0:03:01.9]} 3... Nf6 {[%clk 0:02:55.4]} 4.
exd5 {[%clk 0:03:01.5]} 4... exd5 {[%clk 0:02:55.2]} 5. Bg5 {[%clk 0:03:01.6]}
5... Be7 {[%clk 0:02:54.2]} 6. Bd3 {[%clk 0:03:02.2]} 6... O-O {[%clk
0:02:54.6]} 7. Qd2 {[%clk 0:03:02.9]} 7... Nbd7 {[%clk 0:02:54.5]} 8. O-O-O
{[%clk 0:03:03.5]} 8... c6 {[%clk 0:02:53.1]} 9. h4 {[%clk 0:03:03.2]} 9... b5
{[%clk 0:02:53.4]} 10. Re1 {[%clk 0:03:02.6]} 10... Bb4 {[%clk 0:02:52.2]} 11.
Nf3 {[%clk 0:02:59.3]} 11... Qa5 {[%clk 0:02:48.9]} 12. Ne5 {[%clk 0:02:50.1]}
12... Nxe5 {[%clk 0:02:37]} 13. dxe5 {[%clk 0:02:48.5]} 13... Ng4 {[%clk
0:02:22.2]} 14. Re2 {[%clk 0:02:19]} 14... d4 {[%clk 0:02:19.2]} 15. a3 {[%clk
0:01:46.5]} 15... dxc3 {[%clk 0:02:10.2]} 16. Qf4 {[%clk 0:01:37.4]} 16... cxb2+
{[%clk 0:02:05.4]} 17. Kxb2 {[%clk 0:01:32.2]} 17... Qxa3+ {[%clk 0:02:05.3]}
18. Kb1 {[%clk 0:01:32.8]} 18... Bc3 {[%clk 0:02:05.1]} 19. Qc1 {[%clk
0:01:31.4]} 19... Qa1# {[%clk 0:02:04]} 0-1

[Event "Late-Titled-Tuesday-Blitz-February-27-2024"]
[Site "Chess.com"]
[Date "2024.02.27"]
[Round "4"]
[White "NovakRatko"]
[Black "JosephRyan"]
[Result "1-0"]
[WhiteElo "2475"]
[BlackElo "2191"]
[TimeControl "180+1"]
[EndTime "14:36:42 PST"]
[Termination "NovakRatko won by resignation"]

1. d4 {[%clk 0:02:53.8]} 1... Nf6 {[%clk 0:02:58]} 2. c4 {[%clk 0:02:54.1]} 2...
e6 {[%clk 0:02:58.3]} 3. a3 {[%clk 0:02:54.6]} 3... d5 {[%clk 0:02:56.5]} 4. Nc3
{[%clk 0:02:54.9]} 4... Be7 {[%clk 0:02:56.1]} 5. Bg5 {[%clk 0:02:53]} 5... h6
{[%clk 0:02:53.7]} 6. Bxf6 {[%clk 0:02:52.9]} 6... Bxf6 {[%clk 0:02:53.8]} 7. e3
{[%clk 0:02:53.6]} 7... O-O {[%clk 0:02:53.1]} 8. Nf3 {[%clk 0:02:53.5]} 8... c5
{[%clk 0:02:44.8]} 9. dxc5 {[%clk 0:02:51]} 9... Bxc3+ {[%clk 0:02:44.7]} 10.
bxc3 {[%clk 0:02:50.3]} 10... Qa5 {[%clk 0:02:42.6]} 11. cxd5 {[%clk 0:02:40.8]}
11... Qxc3+ {[%clk 0:02:40.7]} 12. Nd2 {[%clk 0:02:41]} 12... Qxc5 {[%clk
0:02:31.4]} 13. dxe6 {[%clk 0:02:37]} 13... Bxe6 {[%clk 0:02:30.1]} 14. Qc1
{[%clk 0:02:37]} 14... Qxc1+ {[%clk 0:02:28.5]} 15. Rxc1 {[%clk 0:02:36]} 15...
Nd7 {[%clk 0:02:21.1]} 16. Bc4 {[%clk 0:02:35.7]} 16... Rfc8 {[%clk 0:02:20]}
17. Ke2 {[%clk 0:02:33.9]} 17... Bxc4+ {[%clk 0:02:19.6]} 18. Nxc4 {[%clk
0:02:32.8]} 18... b5 {[%clk 0:02:17.9]} 19. Nd6 {[%clk 0:02:31.4]} 19... Rxc1
{[%clk 0:02:16.4]} 20. Rxc1 {[%clk 0:02:32.3]} 20... Rb8 {[%clk 0:02:13.5]} 21.
Rc7 {[%clk 0:02:32.5]} 21... Ne5 {[%clk 0:02:10.1]} 22. Rxa7 {[%clk 0:02:30.8]}
22... Nc4 {[%clk 0:02:09]} 23. Nxf7 {[%clk 0:02:25.4]} 23... Nxa3 {[%clk
0:01:56.5]} 24. Nxh6+ {[%clk 0:02:24.9]} 24... gxh6 {[%clk 0:01:56.7]} 25. Rxa3
{[%clk 0:02:25.5]} 25... Kg7 {[%clk 0:01:56.5]} 26. Kd3 {[%clk 0:02:19.2]} 26...
Kf6 {[%clk 0:01:56.8]} 27. Ra6+ {[%clk 0:02:13]} 27... Kf5 {[%clk 0:01:56.9]}
28. Rxh6 {[%clk 0:02:12.2]} 28... b4 {[%clk 0:01:56.1]} 29. Kc2 {[%clk
0:02:12.6]} 29... b3+ {[%clk 0:01:55.8]} 30. Kb2 {[%clk 0:02:12.8]} 30... Ke4
{[%clk 0:01:56.7]} 31. Rh4+ {[%clk 0:02:11]} 31... Kd3 {[%clk 0:01:56.8]} 32.
Rf4 {[%clk 0:02:07.7]} 32... Rg8 {[%clk 0:01:50.2]} 33. g4 {[%clk 0:02:06.5]}
33... Rh8 {[%clk 0:01:48]} 34. Kxb3 {[%clk 0:01:57.2]} 34... Rxh2 {[%clk
0:01:47.9]} 35. Kb4 {[%clk 0:01:57.7]} 1-0

[Event "Late-Titled-Tuesday-Blitz-February-27-2024"]
[Site "Chess.com"]
[Date "2024.02.27"]
[Round "4"]
[White "HaryKane"]
[Black "Resignify"]
[Result "1-0"]
[WhiteElo "2587"]
[BlackElo "2255"]
[TimeControl "180+1"]
[EndTime "14:36:51 PST"]
[Termination "HaryKane won by resignation"]

1. e4 {[%clk 0:03:00.9]} 1... d6 {[%clk 0:03:00.1]} 2. d4 {[%clk 0:02:59.3]}
2... Nf6 {[%clk 0:03:00.2]} 3. f3 {[%clk 0:02:59.3]} 3... Nbd7 {[%clk
0:02:56.6]} 4. c4 {[%clk 0:02:59.7]} 4... e5 {[%clk 0:02:56.5]} 5. Ne2 {[%clk
0:02:59.1]} 5... Be7 {[%clk 0:02:54.8]} 6. Nbc3 {[%clk 0:02:59.3]} 6... h6
{[%clk 0:02:52.5]} 7. Be3 {[%clk 0:02:58.9]} 7... Nh7 {[%clk 0:02:51.3]} 8. Qd2
{[%clk 0:02:56.3]} 8... Bg5 {[%clk 0:02:50.5]} 9. O-O-O {[%clk 0:02:55.8]} 9...
Bxe3 {[%clk 0:02:48.9]} 10. Qxe3 {[%clk 0:02:56.7]} 10... Qg5 {[%clk 0:02:44]}
11. f4 {[%clk 0:02:56.8]} 11... exf4 {[%clk 0:02:30.2]} 12. Nxf4 {[%clk
0:02:57.7]} 12... c6 {[%clk 0:02:26.9]} 13. h4 {[%clk 0:02:50]} 13... Qe7 {[%clk
0:02:24.7]} 14. Bd3 {[%clk 0:02:22.8]} 14... Ndf6 {[%clk 0:02:21.6]} 15. Kb1
{[%clk 0:02:18.2]} 15... Ng4 {[%clk 0:02:17.7]} 16. Qg3 {[%clk 0:02:17.2]} 16...
Bd7 {[%clk 0:02:04.9]} 17. Rhe1 {[%clk 0:02:16.5]} 17... O-O-O {[%clk
0:02:03.3]} 18. e5 {[%clk 0:02:09.5]} 18... dxe5 {[%clk 0:02:00.3]} 19. dxe5
{[%clk 0:02:09.3]} 19... g6 {[%clk 0:01:22.4]} 20. e6 {[%clk 0:02:04.7]} 20...
Bxe6 {[%clk 0:01:07.6]} 21. Nxe6 {[%clk 0:02:03.4]} 21... fxe6 {[%clk
0:01:06.1]} 22. Qxg4 {[%clk 0:02:00.6]} 1-0